bitfinex-derivatives/quotes_SOLF0:USTF0_20251129
["timestamp","ask_amount","ask_price","bid_price","bid_amount"]
[1764406361588,102.24152524,136.99,136.93,6.84073951]
[1764406362594,102.24152524,136.99,136.95,0.05385199]
[1764406363493,6.5709,136.96,136.95,0.05385199]
[1764406363687,31.4909,136.96,136.95,0.05385199]
[1764406372107,31.4909,136.96,136.95,3.34385199]
[1764406373313,24.92,136.96,136.95,3.34385199]
[1764406375109,6.5698,136.98,136.95,3.34385199]
[1764406376402,24.97032524,136.99,136.95,3.34385199]
[1764406377107,31.53952524,136.99,136.95,3.34385199]
[1764406379514,6.5696,136.98,136.95,3.34385199]
[1764406379808,24.97032524,136.99,136.95,0.05385199]
[1764406381312,6.5701,136.97,136.95,0.05385199]
[1764406389123,6.5701,136.97,136.95,3.30385199]
[1764406393422,6.5701,136.97,136.95,10.1445915]
[1764406393624,31.53992524,136.99,136.95,10.1445915]
[1764406393818,24.97032524,136.99,136.95,10.1445915]
[1764406394520,6.5697,136.98,136.96,3.25]
[1764406396017,102.1972,136.98,136.91,6.84073951]
[1764406396221,102.2034,136.97,136.91,6.84073951]
[1764406397025,0.05367522,136.95,136.93,0.04765914]
[1764406397219,24.97367522,136.95,136.93,0.04765914]
[1764406397420,31.54507522,136.95,136.93,0.04765914]
[1764406410340,1.89287936,136.94,136.93,0.04765914]
[1764406410540,104.12177936,136.94,136.89,6.84073951]
[1764406410731,104.12177936,136.94,136.88,8.73361887]
[1764406410931,104.12177936,136.94,136.88,11.88361887]
[1764406411332,6.5733,136.91,136.88,11.88361887]
[1764406411631,31.54707671,136.91,136.88,11.93279275]
[1764406412543,6.5737,136.9,136.88,8.78279275]
[1764406412737,6.5737,136.9,136.88,5.05205324]
[1764406414643,6.5737,136.9,136.88,0.04917388]
[1764406421250,6.5749,136.88,136.85,11.84361887]
[1764406421450,6.5749,136.88,136.83,9.92062432]
[1764406421451,24.92,136.88,136.83,9.92062432]
[1764406421751,24.92,136.88,136.84,5.00287936]
[1764406422355,6.62475766,136.87,136.85,0.05268964]
[1764406431251,0.04975766,136.87,136.85,5.055569]
[1764406431454,0.04975766,136.87,136.86,3.11]
[1764406437272,6.62485766,136.87,136.85,1.945569]
[1764406438672,6.62485766,136.87,136.85,5.055569]
[1764406439166,6.62485766,136.87,136.86,3.11]
[1764406442574,6.5763,136.84,136.83,6.81062432]
[1764406442766,6.5763,136.84,136.81,12.11828746]
[1764406442767,102.3142,136.82,136.76,8.70350368]
[1764406442966,104.20707936,136.82,136.76,4.95287936]
[1764406443166,6.5782,136.8,136.77,3.06]
[1764406443363,31.4982,136.8,136.77,3.06]
[1764406443571,31.55031852,136.8,136.77,3.11616391]
[1764406450072,24.97211852,136.8,136.77,3.11616391]
[1764406450277,0.05211852,136.8,136.79,3.06]
[1764406450780,24.94,136.86,136.79,3.06]
[1764406450982,24.94,136.86,136.82,4.95287936]
[1764406451679,0.04754584,136.85,136.83,0.05623371]
[1764406452385,0.04754584,136.85,136.84,4.95287936]
[1764406464590,6.5745,136.88,136.85,3.11]
[1764406464881,6.5745,136.88,136.87,5.00287936]
[1764406470490,6.5745,136.88,136.87,3.11]
[1764406472392,6.5745,136.88,136.86,0.05286601]
[1764406472782,6.5745,136.88,136.86,3.22286601]
[1764406501521,6.5745,136.88,136.86,0.05286601]
[1764406501911,6.5745,136.88,136.86,3.22286601]
[1764406504721,0.05242406,136.89,136.86,3.22286601]
[1764406505020,0.05242406,136.89,136.86,10.02274228]
[1764406505225,0.05242406,136.89,136.87,3.22]
[1764406507115,6.5744,136.88,136.86,3.27286601]
[1764406507924,6.5744,136.88,136.87,3.22]
[1764406509630,6.5744,136.88,136.86,6.85274228]
[1764406513530,6.5744,136.88,136.86,0.05286601]
[1764406513733,6.5744,136.88,136.86,6.89684549]
[1764406518730,6.5744,136.88,136.87,2.99]
[1764406519830,0.05242406,136.89,136.87,2.99]
[1764406520739,6.62642406,136.89,136.87,2.99]
[1764406529736,6.62642406,136.89,136.88,2.99]
[1764406532542,6.62642406,136.89,136.88,4.88308026]
[1764406536939,0.05242406,136.89,136.88,4.88308026]
[1764406542549,24.83737254,136.9,136.89,3.04]
[1764406542849,6.5729,136.92,136.89,3.04]
[1764406543040,6.5729,136.92,136.9,3.04]
[1764406543247,6.5732,136.91,136.88,6.84397948]
[1764406543543,6.6245666,136.91,136.88,9.93468299]
[1764406546553,6.6245666,136.91,136.89,3.04]
[1764406548749,6.6245666,136.91,136.88,6.89468299]
[1764406549049,6.6245666,136.91,136.88,9.93468299]
[1764406550852,6.5735,136.9,136.88,9.93468299]
[1764406551760,6.5735,136.9,136.89,3.04]
[1764406554764,6.5744,136.88,136.86,6.84397948]
[1764406554960,102.2647,136.89,136.85,6.84397948]
[1764406555366,6.5755,136.86,136.84,9.88397948]
[1764406555865,6.6244544,136.86,136.84,9.93776413]
[1764406556070,0.0489544,136.86,136.85,3.04]
[1764406557571,6.5758,136.85,136.84,6.89776413]
[1764406557762,6.5758,136.85,136.84,0.05378465]
[1764406560868,6.5772,136.83,136.8,9.88397948]
[1764406561870,6.62732337,136.83,136.81,3.04]
[1764406564869,6.62732337,136.83,136.8,3.342375]
[1764406565072,6.5774,136.82,136.8,3.342375]
[1764406565968,6.5774,136.82,136.81,1.89308026]
[1764406566170,0.05012337,136.83,136.81,1.89308026]
[1764406566171,0.05012337,136.83,136.82,3.29]
[1764406576881,6.5757,136.86,136.82,3.29]
[1764406577183,6.5757,136.86,136.85,5.13308026]
[1764406577968,6.5757,136.86,136.85,3.24]
[1764406578569,24.97213148,136.87,136.85,3.24]
[1764406580577,31.54713148,136.87,136.85,3.24]
[1764406582378,31.54713148,136.87,136.85,5.13308026]
[1764406582585,6.62713148,136.87,136.86,3.24]
[1764406582884,0.05213148,136.87,136.86,3.24]
[1764406594288,6.62723148,136.87,136.85,3.0]
[1764406595289,0.05213148,136.87,136.85,3.0]
[1764406609309,0.05213148,136.87,136.85,9.84397948]
[1764406610101,0.05213148,136.87,136.86,3.0]
[1764406613906,0.05213148,136.87,136.86,9.84397948]
[1764406629329,0.05213148,136.87,136.86,9.83987485]
[1764406631926,0.05213148,136.87,136.85,6.83987485]
[1764406632132,0.05213148,136.87,136.84,9.91959959]
[1764406632723,0.05213148,136.87,136.85,3.03]
[1764406633324,6.5754,136.86,136.85,3.03]
[1764406635538,0.05213148,136.87,136.85,3.03]
[1764406635723,0.05213148,136.87,136.85,9.86987485]
[1764406636032,0.05213148,136.87,136.86,3.11]
[1764406646739,0.05213148,136.87,136.86,9.94987485]
[1764406652242,0.05213148,136.87,136.86,3.11]
[1764406652643,6.5754,136.86,136.85,9.89987485]
[1764406653039,6.5754,136.86,136.85,3.06]
[1764406657045,0.05213148,136.87,136.85,3.06]
[1764406657840,0.05213148,136.87,136.86,4.95428096]
[1764406674560,0.00213148,136.87,136.86,11.79171585]
[1764406675253,0.00213148,136.87,136.86,4.95428096]
[1764406678957,0.00213148,136.87,136.86,14.02078265]
[1764406679459,0.00213148,136.87,136.86,4.95428096]
[1764406682669,24.92,136.91,136.87,3.07]
[1764406682966,24.92,136.91,136.9,3.07]
[1764406686074,6.62615561,136.92,136.9,3.07]
[1764406723309,6.62615561,136.92,136.91,3.18]
[1764406724099,0.05335561,136.92,136.91,3.18]
[1764406741121,0.05335561,136.92,136.9,10.0190867]
[1764406741522,0.05335561,136.92,136.91,3.18]
[1764406743128,6.62625561,136.92,136.9,6.8390867]
[1764406743334,6.62625561,136.92,136.9,3.1]
[1764406743521,6.62625561,136.92,136.89,9.98532111]
[1764406743722,6.5732,136.91,136.89,9.98532111]
[1764406744033,6.5732,136.91,136.9,3.1]
[1764406747835,6.5732,136.91,136.89,9.98532111]
[1764406750536,6.5732,136.91,136.9,3.1]
[1764406752541,0.05335561,136.92,136.9,3.1]
[1764406757659,0.05335561,136.92,136.9,9.9390867]
[1764406758348,0.05335561,136.92,136.91,3.02]
[1764406763763,31.4912,136.95,136.92,3.02]
[1764406764248,31.4912,136.95,136.93,3.02]
[1764406764848,31.54248537,136.95,136.93,3.06788657]
[1764406766659,31.54248537,136.95,136.93,0.04788657]
[1764406766866,31.54248537,136.95,136.93,3.06788657]
[1764406774672,31.54248537,136.95,136.93,4.95982698]
[1764406779976,31.54248537,136.95,136.94,3.27]
[1764406781676,24.97128537,136.95,136.94,3.27]
[1764406785078,0.05128537,136.95,136.94,3.27]
[1764406788276,4.86014,137.0,136.96,3.27]
[1764406788482,4.86014,137.0,136.98,1.89194041]
[1764406789374,4.91069345,137.0,136.98,1.9465359]
[1764406790877,4.91069345,137.0,136.98,5.2165359]
[1764406792782,4.91069345,137.0,136.99,3.27]
[1764406800091,4.91069345,137.0,136.98,3.32459549]
[1764406800289,4.91069345,137.0,136.99,1.89007686]
[1764406800982,4.91069345,137.0,136.98,1.94467235]
[1764406801383,4.91069345,137.0,136.98,5.21467235]
[1764406801887,11.47969345,137.0,136.98,0.05459549]
[1764406802790,4.91069345,137.0,136.99,5.18007686]
[1764406810707,4.91069345,137.0,136.98,0.05459549]
[1764406812400,11.47939345,137.0,136.98,0.05459549]
[1764406820908,36.39939345,137.0,136.98,0.05459549]
[1764406828607,29.83069345,137.0,136.99,5.02007686]
[1764406829511,4.91069345,137.0,136.99,5.02007686]
[1764406831611,4.91069345,137.0,136.99,3.13]
[1764406831910,4.91069345,137.0,136.99,5.02007686]
[1764406832313,4.91069345,137.0,136.99,11.83716723]
[1764406836520,4.91069345,137.0,136.99,9.96645668]
[1764406853543,4.91069345,137.0,136.99,3.13]
[1764406856645,4.91069345,137.0,136.99,9.96902916]
[1764406856847,6.80124089,137.05,137.0,3.07]
[1764406857045,133.83774089,137.06,137.01,3.07]
[1764406857946,0.04948848,137.05,137.02,0.05593498]
[1764406858147,6.5668,137.04,137.02,0.05593498]
[1764406858545,0.04948848,137.05,137.03,3.07]
[1764406870657,0.04948848,137.05,137.03,3.04]
[1764406872456,0.04948848,137.05,137.02,3.25593498]
[1764406873356,6.5668,137.04,137.02,3.25593498]
[1764406875563,0.04948848,137.05,137.03,3.2]
[1764406876861,0.04948848,137.05,137.04,6.15302286]
[1764406879064,0.04948848,137.05,137.04,3.2]
[1764406879659,0.04948848,137.05,137.03,3.2]
[1764406885769,0.04948848,137.05,137.04,3.2]
[1764406895369,0.04948848,137.05,137.04,10.00805528]
[1764406896375,6.5652,137.08,137.06,3.05]
[1764406897285,6.61410822,137.08,137.06,3.10330674]
[1764406898581,6.61410822,137.08,137.07,1.888148]
[1764406898781,6.61410822,137.08,137.07,4.938148]
[1764406901379,0.04890822,137.08,137.07,4.938148]
[1764406908086,6.5633,137.12,137.07,4.938148]
[1764406908285,6.5633,137.12,137.1,3.05]
[1764406909286,6.61849701,137.12,137.1,3.10200982]
[1764406910779,0.05519701,137.12,137.1,3.10200982]
[1764406914891,6.61819701,137.12,137.1,3.10200982]
[1764406915991,8.50634501,137.12,137.1,0.05200982]
[1764406916485,102.1355,137.06,137.01,9.85805528]
[1764406916693,24.88,137.05,137.01,3.05]
[1764406917380,0.05002879,137.04,137.02,0.04766201]
[1764406918484,6.61702879,137.04,137.02,0.04766201]
[1764406919692,6.61702879,137.04,137.02,3.09766201]
[1764406920290,6.61702879,137.04,137.03,3.05]
[1764406920799,6.61702879,137.04,137.02,4.98581001]
[1764406921095,6.61702879,137.04,137.02,3.09766201]
[1764406922692,6.61702879,137.04,137.02,0.04766201]
[1764406929807,6.568,137.02,136.99,1.888148]
[1764406930206,24.9,137.03,136.99,1.888148]
[1764406930504,24.9,137.03,136.99,5.198148]
[1764406930897,24.9,137.03,137.0,0.05425012]
[1764406931303,6.5683,137.01,137.0,0.05425012]
[1764406931805,102.1805,137.0,136.95,5.198148]
[1764406932007,24.9,136.99,136.96,3.31]
[1764406932392,24.9,136.99,136.98,3.13]
[1764406932600,0.04606394,137.0,136.98,3.13]
[1764406932802,0.04606394,137.0,136.99,5.018148]
[1764406938109,0.04606394,137.0,136.97,0.05081495]
[1764406938516,24.92,136.99,136.97,0.05081495]
[1764406938718,31.4893,136.99,136.97,0.05081495]
[1764406939217,31.4893,136.99,136.97,3.18081495]
[1764406939605,31.4893,136.99,136.97,0.05081495]
[1764406945429,33.377448,136.99,136.97,0.05081495]
[1764406949032,31.4893,136.99,136.97,3.18081495]
[1764406949234,24.92,136.98,136.97,3.18081495]
[1764406952832,31.4893,136.99,136.97,3.18081495]
[1764406953426,24.92,136.99,136.97,3.18081495]
[1764406953626,24.92,136.99,136.98,4.918148]
[1764406954027,24.92,136.99,136.98,3.03]
[1764406954437,6.61476394,137.0,136.98,3.03]
[1764406957938,6.61476394,137.0,136.97,3.08081495]
[1764406959039,6.5693,136.99,136.97,0.05081495]
[1764406964236,6.5693,136.99,136.97,3.08081495]
[1764406964636,6.5693,136.99,136.97,0.05081495]
[1764406965138,6.5693,136.99,136.97,3.08081495]
[1764406968637,6.5693,136.99,136.97,0.05081495]
[1764406969330,6.5706,136.96,136.93,9.84948961]
[1764406970135,6.5706,136.96,136.94,3.03]
[1764406970433,6.6248836,136.96,136.94,3.03]
[1764406970634,6.5712,136.95,136.93,6.86896356]
[1764406971632,6.5712,136.95,136.93,0.04947395]
[1764406972040,6.5712,136.95,136.93,3.07947395]
[1764406972641,6.5712,136.95,136.93,0.04947395]
[1764406974435,31.4912,136.95,136.93,0.04947395]
[1764406975841,31.4912,136.95,136.93,3.07947395]
[1764406986651,31.4912,136.95,136.93,9.89896356]
[1764406989344,31.4912,136.95,136.93,6.86896356]
[1764406989949,31.4912,136.95,136.93,9.89896356]
[1764406990252,31.4912,136.95,136.93,6.86896356]
[1764406990950,31.4912,136.95,136.93,9.89896356]
[1764406993762,0.0542836,136.96,136.94,3.03]
[1764406994050,0.0542836,136.96,136.95,5.98487028]
[1764406994255,0.0542836,136.96,136.95,3.03]
[1764406999264,0.0542836,136.96,136.94,10.07948961]
[1764407001260,0.0542836,136.96,136.95,6.81948961]
[1764407007372,0.0542836,136.96,136.95,10.07948961]
[1764407010479,0.0542836,136.96,136.95,6.81948961]
[1764407010771,6.571,136.95,136.94,10.07948961]
[1764407012775,6.571,136.95,136.94,10.08918898]
[1764407017484,6.571,136.95,136.94,6.82918898]
[1764407017886,6.571,136.95,136.94,9.93918898]
[1764407018284,6.571,136.95,136.94,3.11]
[1764407018976,6.571,136.95,136.93,6.87866293]
[1764407019487,6.571,136.95,136.93,9.98866293]
[1764407019881,6.571,136.95,136.93,6.87866293]
[1764407020083,24.92,136.94,136.93,0.04947395]
[1764407020279,6.572,136.93,136.91,6.82918898]
[1764407020890,6.572,136.93,136.92,3.11]
[1764407030194,24.96715524,136.94,136.92,3.11]
[1764407030395,0.04715524,136.94,136.93,5.00281039]
[1764407038800,24.92,136.96,136.94,3.11]
[1764407039800,24.96820868,136.96,136.94,3.11]
[1764407040997,0.04820868,136.96,136.94,3.11]
[1764407042301,0.04820868,136.96,136.95,5.00281039]
[1764407051909,5.06578983,137.0,136.96,3.21]
[1764407052912,0.05382227,136.99,136.98,3.21]
[1764407053407,6.62302227,136.99,136.98,3.21]
[1764407054905,0.05382227,136.99,136.98,3.21]
[1764407057611,6.5679,137.02,136.98,3.21]
[1764407058012,6.5679,137.02,136.99,1.89281039]
[1764407058208,11.63258983,137.04,137.0,3.2]
[1764407058714,0.05190113,137.03,137.02,3.2]
[1764407059214,0.05190113,137.03,137.01,0.05093054]
[1764407059715,0.05190113,137.03,137.01,3.25093054]
[1764407088330,11.63884936,137.07,137.02,3.23]
[1764407088632,6.5656,137.07,137.02,3.23]
[1764407089230,0.0477214,137.06,137.02,3.23]
[1764407090632,6.6137214,137.06,137.02,3.23]
[1764407091132,0.0477214,137.06,137.02,3.23]
[1764407097529,6.5666,137.05,137.02,3.23]
[1764407097736,11.63984936,137.05,137.02,3.23]
[1764407100249,5.07324936,137.04,137.02,3.23]
[1764407102347,6.5652,137.08,137.04,3.23]
[1764407102538,6.5639,137.1,137.06,3.26]
[1764407102739,24.9,137.13,137.06,3.26]
[1764407102945,24.9,137.13,137.08,3.26]
[1764407103347,0.05147331,137.12,137.1,3.26]
[1764407104447,6.61457331,137.12,137.1,3.26]
[1764407104839,0.05147331,137.12,137.1,3.26]
[1764407110342,31.4409,137.17,137.1,3.26]
[1764407111349,0.05175007,137.15,137.12,0.05541459]
[1764407111550,0.05175007,137.15,137.13,3.26]
[1764407112955,0.05175007,137.15,137.12,3.31541459]
[1764407116743,0.05175007,137.15,137.12,0.05541459]
[1764407118245,9.51477608,137.14,137.12,0.05541459]
[1764407118451,105.03157608,137.14,137.08,3.01]
[1764407119157,102.0836,137.13,137.08,3.01]
[1764407119359,24.92981841,137.12,137.09,0.0548465]
[1764407120360,6.5636,137.11,137.09,0.0548465]
[1764407129267,6.5636,137.11,137.09,3.0648465]
[1764407129567,6.5636,137.11,137.09,0.0548465]
[1764407132379,24.88,137.1,137.09,3.0648465]
[1764407140874,0.04981841,137.12,137.09,7.47742258]
[1764407141081,0.04981841,137.12,137.11,6.06257608]
[1764407142675,0.04981841,137.12,137.11,4.99657598]
[1764407151384,0.04981841,137.12,137.11,3.11]
[1764407157601,0.04981841,137.12,137.1,3.11]
[1764407158699,104.02969439,137.12,137.06,6.79274245]
[1764407158893,1.88657598,137.1,137.06,3.11]
[1764407159700,6.5644,137.09,137.06,3.11]
[1764407159999,6.61107947,137.09,137.07,3.16354521]
[1764407160193,6.61107947,137.09,137.07,0.05354521]
[1764407160591,1.88657598,137.08,137.07,0.05354521]
[1764407166709,6.61107947,137.09,137.07,0.05354521]
[1764407169704,6.61107947,137.09,137.07,3.07354521]
[1764407170008,24.9,137.08,137.07,3.07354521]
[1764407172613,6.61107947,137.09,137.07,3.07354521]
[1764407174911,6.61107947,137.09,137.07,0.05354521]
[1764407194226,6.61107947,137.09,137.07,3.26354521]
[1764407194533,0.04667947,137.09,137.07,5.15012119]
[1764407194734,0.04667947,137.09,137.08,3.21]
[1764407214857,0.04667947,137.09,137.07,3.26354521]
[1764407216459,6.61117947,137.09,137.07,3.26354521]
[1764407217264,0.04667947,137.09,137.07,3.26354521]
[1764407217854,31.4427,137.13,137.08,3.21]
[1764407218165,6.5627,137.13,137.1,3.21]
[1764407218862,6.61211751,137.13,137.1,3.26497247]
[1764407219771,0.04941751,137.13,137.1,3.26497247]
[1764407220864,0.04941751,137.13,137.12,3.21]
[1764407227172,6.5606,137.17,137.12,3.21]
[1764407227377,102.0535,137.17,137.12,3.21]
[1764407228377,6.5617,137.15,137.13,0.049038]
[1764407230278,31.4417,137.15,137.13,0.049038]
[1764407240983,31.4417,137.15,137.13,3.069038]
[1764407242991,31.4417,137.15,137.13,0.049038]
[1764407256690,102.0911,137.12,137.07,6.79274245]
[1764407256891,102.1052,137.1,137.05,10.06274245]
[1764407257092,102.1052,137.1,137.05,3.27]
[1764407257295,102.1052,137.1,137.04,6.79274245]
[1764407257597,0.05509845,137.08,137.06,0.04938254]
[1764407257799,24.88,137.07,137.06,0.04938254]
[1764407260299,6.5658,137.06,137.04,3.27]
[1764407261493,6.5658,137.06,137.04,3.31704939]
[1764407264299,6.5658,137.06,137.04,0.04704939]
[1764407266897,6.567,137.04,137.01,3.27]
[1764407267092,24.88,137.03,137.01,3.27]
[1764407267799,24.93492661,137.03,137.01,3.32306692]
[1764407268303,6.5677,137.02,137.01,3.32306692]
[1764407269397,6.5677,137.02,137.01,0.05306692]
[1764407271600,6.5692,136.99,136.97,3.27]
[1764407271807,31.4492,136.99,136.97,3.27]
[1764407272706,31.49733783,136.99,136.97,3.3262574]
[1764407273402,31.49733783,136.99,136.92,6.79274245]
[1764407273403,6.5705,136.96,136.92,1.88958802]
[1764407273591,127.1079,136.96,136.91,1.88958802]
[1764407273904,102.2267,136.93,136.89,3.27]
[1764407274104,24.9,136.92,136.89,3.27]
[1764407274603,24.95466296,136.92,136.89,3.32203325]
[1764407274804,24.95466296,136.92,136.9,3.27]
[1764407281308,24.95466296,136.92,136.89,3.32203325]
[1764407281806,24.95466296,136.92,136.89,0.05203325]
[1764407282012,24.95466296,136.92,136.89,3.32203325]
[1764407284611,31.52726296,136.92,136.89,3.32203325]
[1764407284811,31.52726296,136.92,136.89,0.05203325]
[1764407285212,31.52726296,136.92,136.89,3.34203325]
[1764407287714,31.52726296,136.92,136.89,0.05203325]
[1764407288116,31.52726296,136.92,136.89,3.34203325]
[1764407288419,6.5729,136.91,136.89,3.34203325]
[1764407291018,6.5729,136.91,136.89,0.05203325]
[1764407293217,24.95466296,136.92,136.89,3.34203325]
[1764407293419,24.95466296,136.92,136.89,0.05203325]
[1764407293620,0.05466296,136.92,136.91,4.87958802]
[1764407307929,0.05466296,136.92,136.91,2.99]
[1764407314954,31.4901,136.97,136.91,2.99]
[1764407315161,31.4901,136.97,136.94,3.25]
[1764407315853,31.53846557,136.97,136.94,3.30189808]
[1764407316453,1.88958802,136.95,136.91,6.79274245]
[1764407316748,1.88958802,136.93,136.9,3.25]
[1764407317555,1.94397207,136.93,136.9,3.29791971]
[1764407318952,1.94397207,136.93,136.9,0.04791971]
[1764407320663,1.88958802,136.91,136.9,0.04791971]
[1764407324555,6.5724,136.92,136.9,3.29791971]
[1764407325457,6.5724,136.92,136.9,0.04791971]
[1764407327159,6.5724,136.92,136.9,3.29791971]
[1764407328757,6.5724,136.92,136.9,0.04791971]
[1764407334365,24.96,136.91,136.9,0.04791971]
[1764407351269,24.96,136.91,136.9,3.08791971]
[1764407351770,24.96,136.91,136.9,0.04791971]
[1764407353373,102.2519,136.9,136.86,3.04]
[1764407354171,0.05559525,136.89,136.87,0.05438917]
[1764407354372,31.5144,136.88,136.87,0.05438917]
[1764407361877,31.5144,136.88,136.87,3.09438917]
[1764407362069,31.5144,136.88,136.87,0.05438917]
[1764407365470,31.5144,136.88,136.84,3.04]
[1764407366480,31.5144,136.88,136.85,3.08771896]
[1764407369482,24.94,136.87,136.85,3.08771896]
[1764407371788,0.05559525,136.89,136.85,12.87367457]
[1764407372090,0.05559525,136.89,136.87,3.04]
[1764407373888,24.94,136.94,136.89,3.15]
[1764407374890,0.04762337,136.93,136.9,3.19811405]
[1764407380290,0.04762337,136.93,136.9,6.15627305]
[1764407380497,0.04762337,136.93,136.92,6.108159]
[1764407380994,0.04762337,136.93,136.92,3.15]
[1764407385289,6.5698,136.97,136.92,3.15]
[1764407386304,0.04741656,136.96,136.94,3.15]
[1764407386598,0.04741656,136.96,136.94,5.04120303]
[1764407386794,0.04741656,136.96,136.95,3.15]
[1764407388498,0.04741656,136.96,136.94,5.04120303]
[1764407388802,0.04741656,136.96,136.95,3.15]
[1764407389101,0.04741656,136.96,136.94,5.04120303]
[1764407391505,6.61791656,136.96,136.93,3.20146553]
[1764407392407,6.61791656,136.96,136.93,0.05146553]
[1764407392408,6.5709,136.95,136.93,0.05146553]
[1764407396618,6.5709,136.95,136.93,3.20146553]
[1764407397314,0.04741656,136.96,136.93,3.20146553]
[1764407398004,24.98741656,136.96,136.93,3.20146553]
[1764407399322,31.55781656,136.96,136.93,3.20146553]
[1764407404525,6.61781656,136.96,136.93,3.20146553]
[1764407404925,0.04741656,136.96,136.95,3.02]
[1764407406723,0.04741656,136.96,136.93,3.07146553]
[1764407419830,6.61781656,136.96,136.93,3.07146553]
[1764407420221,6.61781656,136.96,136.93,9.871302]
[1764407420427,6.61781656,136.96,136.94,3.05]
[1764407426328,0.04741656,136.96,136.94,3.05]
[1764407426526,0.04741656,136.96,136.95,11.7410395]
[1764407433540,0.04741656,136.96,136.95,4.94120303]
[1764407434941,0.04741656,136.96,136.95,11.77197926]
[1764407435634,0.04741656,136.96,136.95,4.94120303]
[1764407441040,6.5682,137.01,136.96,3.3]
[1764407441247,6.79678372,137.05,137.0,3.3]
[1764407441544,24.92,137.04,137.0,3.3]
[1764407442043,0.05122102,137.03,137.01,0.05242326]
[1764407442244,0.05122102,137.03,137.01,3.35242326]
[1764407442446,6.61842102,137.03,137.01,3.35242326]
[1764407444342,0.05122102,137.03,137.02,3.3]
[1764407450344,0.05122102,137.03,137.01,3.35242326]
[1764407450539,0.05122102,137.03,137.01,0.05242326]
[1764407451445,6.61832102,137.03,137.01,0.05242326]
[1764407452544,6.61832102,137.03,137.01,3.35242326]
[1764407452742,24.92,137.02,137.01,3.35242326]
[1764407453249,6.61832102,137.03,137.01,3.35242326]
[1764407453449,24.92,137.02,137.01,3.35242326]
[1764407456758,6.61832102,137.03,137.01,3.35242326]
[1764407457057,24.92,137.02,137.01,3.35242326]
[1764407465364,0.05122102,137.03,137.01,3.35242326]
[1764407468562,0.05122102,137.03,137.02,3.13]
[1764407470669,102.0807,137.13,137.03,3.13]
[1764407470870,24.92,137.12,137.07,3.13]
[1764407471673,0.04773429,137.11,137.08,3.18453652]
[1764407472470,6.61093429,137.11,137.08,3.18453652]
[1764407472671,24.96773429,137.11,137.08,3.18453652]
[1764407473773,0.04773429,137.11,137.08,3.18453652]
[1764407473965,0.04773429,137.11,137.09,3.06]
[1764407496188,0.04773429,137.11,137.09,9.6238]
[1764407496388,0.04773429,137.11,137.1,3.22]
[1764407497188,6.5603,137.17,137.1,3.22]
[1764407497392,31.4603,137.17,137.1,3.22]
[1764407498290,0.04840133,137.15,137.13,3.22]
[1764407506892,6.60990133,137.15,137.12,0.04960142]
[1764407507196,0.04840133,137.15,137.12,0.04960142]
[1764407508398,6.5619,137.14,137.12,0.04960142]
[1764407516599,24.88,137.13,137.12,0.04960142]
[1764407525901,6.5619,137.14,137.12,0.04960142]
[1764407526105,24.88,137.13,137.12,0.04960142]
[1764407527607,6.5619,137.14,137.12,0.04960142]
[1764407527907,24.88,137.13,137.12,0.04960142]
[1764407529113,6.5619,137.14,137.12,0.04960142]
[1764407529303,24.9,137.13,137.12,0.04960142]
[1764407542915,6.5619,137.14,137.12,0.04960142]
[1764407543114,24.9,137.13,137.12,0.04960142]
[1764407546818,6.5619,137.14,137.12,0.04960142]
[1764407547019,24.9,137.13,137.12,3.20960142]
[1764407553731,24.9,137.13,137.12,0.04960142]
[1764407553929,24.9,137.13,137.12,3.10960142]
[1764407561343,24.9,137.13,137.12,0.04960142]
[1764407564445,24.88,137.13,137.12,0.04960142]
[1764407564956,6.5619,137.14,137.12,0.04960142]
[1764407565160,24.88,137.13,137.12,0.04960142]
[1764407581674,6.5626,137.12,137.09,4.18169287]
[1764407581870,24.88,137.13,137.07,3.06]
[1764407582169,24.88,137.12,137.08,3.06]
[1764407582670,0.05131722,137.11,137.09,3.24036699]
[1764407582869,24.93131722,137.11,137.09,3.24036699]
[1764407583371,31.49451722,137.11,137.09,3.24036699]
[1764407584169,0.05131722,137.11,137.1,3.19]